Cogmind - Beta 16.1 @@@ ROGUE MODE // 2026.04.08 @ 20:23:24 Player: dohmmass Result: Self-destructed Performance ------------- Evolutions (2) 1000 Regions Visited (4) 800 Robots Destroyed (16) 80 Value Destroyed (439) 439 Prototype IDs (2) 40 Alien Tech Used (0) 0 Bonus (31) 31 TOTAL SCORE: 2390 Bonus ------- Follower Combat Kills 56 Friendly Fire -25 Cogmind --------- Core Integrity 476/550 Matter 300/300 Energy 70/100 System Corruption 0% Temperature Cool (0) Movement Treading (145) Location -8/Materials Parts ------- > --- POWER (2) -------- (None) > --- PROPULSION (2) --- Advanced Treads > --- UTILITY (5) ------ Improved Heat Sink Trap Scanner Sensor Array Targeting Computer > --- WEAPON (2) ------- Heavy Particle Cannon Heavy Particle Cannon > --- INVENTORY (5) ---- Armored Treads Advanced Treads Advanced Treads Heavy Particle Cannon Heavy Particle Cannon Peak State ------------ > --- POWER ------------ Ion Engine > --- PROPULSION ------- Advanced Treads Advanced Treads > --- UTILITY ---------- Improved Heat Sink Trap Scanner Sensor Array Experimental Sensor Array Targeting Computer > --- WEAPON ----------- Heavy Particle Cannon Heavy Particle Cannon > --- INVENTORY -------- Advanced Treads Advanced Treads Heavy Particle Cannon Heavy Particle Cannon [Rating: 31] Favorites ----------- Power Ion Engine Engine Ion Engine Propulsion Advanced Treads Treads Advanced Treads Wheel Compact Wheel Utility Targeting Computer Device Sensor Array Processor Targeting Computer Weapon Heavy Particle Cannon Energy Gun Medium Laser Energy Cannon Heavy Particle Cannon Build | -11 -10 -9 -9 -8 ------- Run | Yrd Mat Mat Min Mat Slots Evolved 4 | . . 2 . 2 Power 1 | . . . . 1 Propulsion . | . . . . . Utility 3 | . . 2 . 1 Weapon . | . . . . . Parts Attached 18 | 4 4 7 2 1 Power 1 | 1 . . . . Engine 1 | 1 . . . . Core . | . . . . . Reactor . | . . . . . Propulsion 4 | 2 . 2 . . Treads 2 | . . 2 . . Leg . | . . . . . Wheel 2 | 2 . . . . Hover . | . . . . . Flight . | . . . . . Utility 7 | . 2 2 2 1 Device 4 | . 1 . 2 1 Storage . | . . . . . Processor 3 | . 1 2 . . Hackware . | . . . . . Protection . | . . . . . Artifact . | . . . . . Weapon 6 | 1 2 3 . . Energy Gun 4 | 1 2 1 . . Energy Cannon 2 | . . 2 . . Ballistic Gun . | . . . . . Ballistic Cannon . | . . . . . Launcher . | . . . . . Special Weapon . | . . . . . Impact Weapon . | . . . . . Slashing Weapon . | . . . . . Piercing Weapon . | . . . . . Special Melee Weapon . | . . . . . Unidentified Prototypes 2 | . . 1 1 . Parts Lost 4 | . . . 1 3 Power 1 | . . . . 1 Propulsion 1 | . . . . 1 Utility 2 | . . . 1 1 Weapon . | . . . . . Highest Loss Streak 3 | . . . 1 3 To Critical Strikes . | . . . . . Average Backups 3 | 1 1 4 4 4 Power . | . . . . . Propulsion 1 | . . 1 2 2 Utility . | . . . . . Weapon 2 | . 1 2 2 2 Tool/Special . | . . . . . Unused Backups 5 | . . 1 . 4 Power . | . . . . . Propulsion 2 | . . . . 2 Utility . | . . . . . Weapon 3 | . . 1 . 2 Tool/Special . | . . . . . Average Slot Usage (%) 93 | . 80 98 99 85 Engine 11 | . 14 11 11 8 Treads 15 | . . 17 22 17 Wheel 6 | . 28 4 . . Device 21 | . 9 11 25 33 Processor 14 | . 1 32 17 9 Energy Gun 6 | . 25 4 . . Energy Cannon 16 | . . 17 22 18 Peak Build Rating 31 | 4 7 18 28 31 Average Rating 20 | 2 5 16 26 28 On Entrance 11 | . 4 7 18 28 Avg Prop Armor Cover (%) 3 | . . 3 . . Naked Turns . | . . . . . Heaviest Build 22 | 7 10 18 20 22 Greatest Support 44 | 32 32 44 44 44 Greatest Overweight (x) . | . . . . . Average Overweight (x) . | . . . . . Largest Inventory Capacity 5 | 5 5 5 5 5 Average Capacity 5 | 5 5 5 5 5 Most Carried 5 | 4 4 5 5 5 Average Carried 3 | 1 2 4 4 4 Final Capacity 5 | 5 5 5 5 5 Final Carried 5 | . 4 5 4 5 Class Distribution -------------------- 100% | Mutant Dominant Class ---------------- Mutant | -10/Materials Mutant | -9/Materials Mutant | -9/Mines Mutant | -8/Materials Resources | -11 -10 -9 -9 -8 ----------- Run | Yrd Mat Mat Min Mat Matter Collected 395 | 72 94 93 136 . Remotely . | . . . . . Salvage Created 556 | . 145 93 197 121 Parts 32 | . 6 8 14 4 Haulers Intercepted 1 | . . 1 . . Recyclers Shooed . | . . . . . Parts Field Recycled . | . . . . . Retrieved Matter . | . . . . . Parts Self-Destructed . | . . . . . Prevented . | . . . . . Parts Restored . | . . . . . Kills | -11 -10 -9 -9 -8 ------- Run | Yrd Mat Mat Min Mat Combat Hostiles Destroyed 15 | . 5 1 7 2 Guns 5 | . 5 . . . Cannons 9 | . . 1 7 1 Classes Destroyed 6 | . 2 2 . 2 Hauler 1 | . . 1 . . Swarmer 7 | . 3 . 4 . Grunt 5 | . 2 . 3 . Sentry 1 | . . 1 . . Hunter 1 | . . . . 1 Heavy 1 | . . . . 1 Best Kill Streak 4 | . 2 1 4 1 Combat Bots Only 4 | . 2 1 4 1 Max Kills in Single Turn 2 | . 1 1 2 1 Gunslinging . | . . . . . Exploded . | . . . . . Melee . | . . . . . Uniques/NPCs Destroyed . | . . . . . Combat | -11 -10 -9 -9 -8 -------- Run | Yrd Mat Mat Min Mat Hostile Shots Fired 67 | . 25 9 16 17 Missed 19 | . 4 4 4 7 Hits 48 | . 21 5 12 10 Projectile 48 | . 21 5 12 10 Critical Strikes 1 | . . 1 . . Damage Taken 795 | . 253 69 133 340 Core 215 | . 104 27 10 74 Absorbed by Shields . | . . . . . Core Remaining (%) 82 | 100 58 . 90 . Volleys Fired 42 | . 17 5 11 9 Largest 2 | . 2 2 2 2 Hottest 150 | . 100 150 150 150 Shots Fired 84 | . 34 10 22 18 Gun 34 | . 34 . . . Cannon 50 | . . 10 22 18 Launcher . | . . . . . Special . | . . . . . Kinetic . | . . . . . Thermal 84 | . 34 10 22 18 Explosive . | . . . . . Electromagnetic . | . . . . . Robot Hit Streak 9 | . 4 3 9 6 Robot Miss Streak 2 | . 2 1 2 2 Penetration Max . | . . . . . Secondary Targets . | . . . . . Shots Hit Robots 55 | . 21 6 14 14 Core Hits 23 | . 8 2 9 4 Critical Kills . | . . . . . Critical Parts Destroyed . | . . . . . Critical Strikes 3 | . 3 . . . Burn 3 | . 3 . . . Melee Attacks . | . . . . . Impact . | . . . . . Slashing . | . . . . . Piercing . | . . . . . Sneak Attacks . | . . . . . Combat Hostiles . | . . . . . Follow-up Attacks . | . . . . . Damage Inflicted 1162 | . 262 150 375 375 Guns 262 | . 262 . . . Cannons 900 | . . 150 375 375 Explosions . | . . . . . Melee . | . . . . . Ramming . | . . . . . Kinetic . | . . . . . Thermal 1162 | . 262 150 375 375 Explosive . | . . . . . Electromagnetic . | . . . . . Impact . | . . . . . Slashing . | . . . . . Piercing . | . . . . . Highest Corruption . | . . . . . Average Corruption . | . . . . . Corruption Purged . | . . . . . Corruption Blocked . | . . . . . Overload Shots . | . . . . . Overflow Damage . | . . . . . Projectiles . | . . . . . Explosions . | . . . . . Melee . | . . . . . Knockbacks . | . . . . . Impact . | . . . . . Kinetic . | . . . . . Secondary . | . . . . . Self-Inflicted Damage . | . . . . . Shots . | . . . . . Rammed . | . . . . . Targets Rammed . | . . . . . Kicked . | . . . . . Crushed . | . . . . . Highest Temperature 382 | . 195 252 382 70 Average Temperature 109 | . 84 98 173 35 Received Heat Transfer 150 | . 63 27 60 . Effects 4 | . . . 4 . Energy Bleed 2 | . . . 2 . Short Circuit 2 | . . . 2 . Siege Activations . | . . . . . Martial Activations . | . . . . . Shielding Activations . | . . . . . Robots Disrupted . | . . . . . Combat Hostiles . | . . . . . Robots Corrupted . | . . . . . Combat Hostiles . | . . . . . Parts Fried . | . . . . . Impact Corruptions . | . . . . . Robots Melted 1 | . . . . 1 Combat Hostiles 1 | . . . . 1 Parts Melted 8 | . 2 . 1 5 Heat Transferred 2331 | . 999 222 555 555 Parts Sabotaged . | . . . . . Parts Stolen . | . . . . . Parts Stripped . | . . . . . Power Chain Reactions . | . . . . . Alert | -11 -10 -9 -9 -8 ------- Run | Yrd Mat Mat Min Mat Maximum Alert Level . | . . . . . Low Security (%) 100 | 100 100 100 100 100 Level 1 . | . . . . . Level 2 . | . . . . . Level 3 . | . . . . . Level 4 . | . . . . . Level 5 . | . . . . . High Security . | . . . . . Max Security . | . . . . . Peak Influence 106 | . 106 31 94 33 Initial 10 | . . 10 4 1 Average 30 | . 49 4 36 7 Influence Increases 577 | . 166 39 305 67 Destroy 0b10 Robot/C 380 | . 100 20 220 40 Destroy 0b10 Robot/NC 5 | . . 5 . . Destroy Leader 92 | . 20 12 40 20 Allied During Kill 28 | . . . 24 4 Disable Machine 15 | . . . 15 . Destroy Structure 12 | . 1 2 6 3 Lose Combat Pursuer 45 | . 45 . . . Influence Decreases 565 | . 140 54 310 61 Entered New Map 28 | . . 16 7 5 Time Decay 512 | . 140 38 293 41 Lost Part 25 | . . . 10 15 Squads Dispatched 2 | . . . . 2 Investigation . | . . . . . Extermination . | . . . . . Reinforcement 2 | . . . . 2 Assault . | . . . . . Garrison . | . . . . . Intercept . | . . . . . Searches Triggered . | . . . . . Construction Impeded . | . . . . . Haulers Reinforced . | . . . . . Active Scanning Responses . | . . . . . Cargo Convoy Interrupts . | . . . . . Stealth | -11 -10 -9 -9 -8 --------- Run | Yrd Mat Mat Min Mat Distress Signals 1 | . 1 . . . Communications Jammed . | . . . . . Distress Signals . | . . . . . Times Spotted 34 | . 12 4 11 7 Peak Tracking Total 5 | . 4 5 4 4 Tactical Retreats 2 | . 2 . . . Traps | -11 -10 -9 -9 -8 ------- Run | Yrd Mat Mat Min Mat Traps Triggered 2 | . 1 1 . . Indirectly . | . . . . . Trap Hack Attempts . | . . . . . Triggered . | . . . . . Disarmed . | . . . . . Reprogrammed . | . . . . . Reused . | . . . . . Traps Extracted . | . . . . . Installed . | . . . . . Triggered . | . . . . . Machines | -11 -10 -9 -9 -8 ---------- Run | Yrd Mat Mat Min Mat Machines Disabled 1 | . . . 1 . Max in Single Turn 1 | . . . 1 . Machines Repaired . | . . . . . Machines Dismantled . | . . . . . Machines Sabotaged . | . . . . . Overloaded Fab Kills . | . . . . . Hacking | -11 -10 -9 -9 -8 --------- Run | Yrd Mat Mat Min Mat Machines Accessed . | . . . . . Terminals . | . . . . . Fabricators . | . . . . . Repair Stations . | . . . . . Recycling Units . | . . . . . Scanalyzers . | . . . . . Garrison Access . | . . . . . Total Hacks . | . . . . . Successful . | . . . . . Failed . | . . . . . Catastrophic . | . . . . . Database Lockouts . | . . . . . Manual . | . . . . . Terminals . | . . . . . Fabricators . | . . . . . Repair Stations . | . . . . . Recycling Units . | . . . . . Scanalyzers . | . . . . . Garrison Access . | . . . . . Terminal Hacks . | . . . . . Fabricator Hacks . | . . . . . Repair Station Hacks . | . . . . . Recycling Unit Hacks . | . . . . . Scanalyzer . | . . . . . Garrison Access Hacks . | . . . . . Unauthorized Hacks . | . . . . . Terminals . | . . . . . Fabricators . | . . . . . Repair Stations . | . . . . . Recycling Units . | . . . . . Scanalyzers . | . . . . . Garrison Access . | . . . . . Data Cores Recovered . | . . . . . Used . | . . . . . Hacking Detections . | . . . . . Full Trace Events . | . . . . . Feedback Events . | . . . . . Feedback Blocked . | . . . . . Robot Schematics Acquired . | . . . . . Robots Built . | . . . . . Authchips . | . . . . . Time . | . . . . . Total Robot Build Rating . | . . . . . Part Schematics Acquired . | . . . . . Parts Built . | . . . . . Authchips . | . . . . . Time . | . . . . . Total Part Build Rating . | . . . . . Part Studies Acquired . | . . . . . Parts Repaired . | . . . . . Time . | . . . . . Parts Recycled . | . . . . . Recycled Matter . | . . . . . Retrieved Matter . | . . . . . Retrieved Components . | . . . . . Parts Scanalyzed . | . . . . . Part Schematics Acquired . | . . . . . Parts Damaged . | . . . . . Bothacking | -11 -10 -9 -9 -8 ------------ Run | Yrd Mat Mat Min Mat Used RIF Installer . | . . . . . Robots Hacked . | . . . . . Non-combat . | . . . . . Combat . | . . . . . Robot Hacks Applied . | . . . . . Relay Couplers Released . | . . . . . Fabnet Peak Effective % . | . . . . . Robots Rewired . | . . . . . Allies Hacked . | . . . . . Hacks Repelled . | . . . . . Allies | -11 -10 -9 -9 -8 -------- Run | Yrd Mat Mat Min Mat Total Allies 2 | . . . 2 . Largest Group 2 | . . . 2 2 Highest-Rated Group 42 | . . . 42 42 Highest-Rated Ally 31 | . . . 31 31 Total Orders . | . . . . . Ally Attacks 24 | . . . 10 14 Total Damage 314 | . . . 104 210 Kills 4 | . . . 4 . Allies Corrupted . | . . . . . Allies Melted . | . . . . . Intel | -11 -10 -9 -9 -8 ------- Run | Yrd Mat Mat Min Mat Active Infowar (turns) 1441 | . 240 189 792 220 Sensors 1441 | . 240 189 792 220 Traps 187 | . . . . 187 Robot Analysis Total . | . . . . . Derelict Logs Recovered 1 | . . . 1 . Drone Launches . | . . . . . Drone Recoveries . | . . . . . Exploration | -11 -10 -9 -9 -8 ------------- Run | Yrd Mat Mat Min Mat Turns Passed 1558 | 26 331 189 792 220 Spaces Moved 1036 | 22 263 108 513 130 Core 8 | 8 . . . . Treads 735 | . . 92 513 130 Legs . | . . . . . Wheels 293 | 14 263 16 . . Hover . | . . . . . Flight . | . . . . . Fastest Speed 50 | 50 100 100 145 145 Average Speed 131 | 81 100 138 145 145 Slowest Speed 145 | 100 100 145 145 145 Overloaded Moves . | . . . . . Propulsion Burnouts . | . . . . . Robots Hopped . | . . . . . Potential Cave-ins . | . . . . . Cave-ins Triggered . | . . . . . Exploration Rate (%) 35 | 4 45 16 93 21 Regions Visited 4 Branch Regions 1 Pre-discovered Areas 2 | . . . 2 . Known Exits Taken . | . . . . . Unknown Exits Taken 4 | 1 1 1 1 . Scrap Searched . | . . . . . Spaces Dug . | . . . . . Terrain Destroyed 12 | . . 3 6 3 Melee . | . . . . . Projectile 12 | . . 3 6 3 AOE . | . . . . . Terrain Rammed . | . . . . . Walls Destroyed . | . . . . . Machines Disabled . | . . . . . Actions | -11 -10 -9 -9 -8 --------- Run | Yrd Mat Mat Min Mat Total 1144 | 29 296 137 539 143 Wait 19 | . 6 . 12 1 Move 1032 | 21 262 107 512 130 Hop . | . . . . . Pick Up 23 | 4 7 9 1 2 Fast Attach 3 | . . 2 1 . Attach 10 | 4 3 2 . 1 Detach . | . . . . . Swap 8 | . 1 6 1 . Drop 7 | . . 6 1 . Fire 42 | . 17 5 11 9 Melee . | . . . . . Ram . | . . . . . Kick . | . . . . . Crush . | . . . . . Escape Stasis . | . . . . . Rewire . | . . . . . Trap . | . . . . . Miscellaneous . | . . . . . Route ------- -11/Scrapyard -10/Materials -9/Materials -9/Mines (discovered 2 exits: [*Mat x2]) -8/Materials History --------- Turn | Location | Event 7 | -11/Scrapyard | Discovered new exit (range 16) 27 | -11/Scrapyard | Entered Materials 129 | -10/Materials | Discovered new exit (range 11) 310 | -10/Materials | Build established: Mutant 358 | -10/Materials | Entered another Materials area 358 | -9/Materials | Evolved 2 slots: Utility x2 524 | -9/Materials | Discovered new exit (range 14) 547 | -9/Materials | Entered Mines 599 | -9/Mines | Found a damaged Exp. Sensor Array with a note attached 602 | -9/Mines | Found Prototype Device 602 | -9/Mines | Identified Exp. Sensor Array 818 | -9/Mines | Learned location of Zion (-7) 958 | -9/Mines | Found a hidden stash of uninstalled traps 1081 | -9/Mines | Discovered new exit (range 8) 1095 | -9/Mines | Learned location of Storage (-9) 1194 | -9/Mines | Discovered new exit (range 8) 1339 | -9/Mines | Entered Materials 1339 | -8/Materials | Accompanied by 2 allies 1339 | -8/Materials | Evolved 2 slots: Power x1, Utility x1 1344 | -8/Materials | Led the pair of lost Derelicts to an unsafe place 1559 | -8/Materials | Self-destructed Last Messages --------------- 01527_ R-06 Scavenger suffers critical hit (Blast). 01527_ R-06 Scavenger destroyed. 01529_ U-05 Engineer builds a Wall. 01531_ Penetrated by Slug. 01531_ Adv. Treads destroyed. 01531_ Ion Engine destroyed. 01533_ H-61 Shepherd critical meltdown. 01533_ Dynamic Insulation System melted. 01533_ Weapon Cycler melted. 01533_ Targeting Computer melted. 01533_ Transmission Jammer melted. 01533_ Graphene Brace melted. 01533_ R-06 Scavenger collects Prototype Device. 01533_ U-05 Engineer builds a Wall. 01537_ R-06 Scavenger collects Arm. Treads. 01541_ Acquired Arm. Treads. 01542_ U-05 Engineer builds a Wall. 01556_ R-06 Scavenger collects Assault Rifle. 01559_ R-06 Scavenger collects Com. Wheel. Map ----- +----------------------------------------------------+ | ?????????????????????????????????????????????????? | | ?????????????????????????????????????????????????? | | ?????????????????????????????????????????????????? | | ?????????????????????????????????????????????????? | | ?????????????????????????????????????????????????? | | ?????????????????????????????????????????????????? | | ?????????????????????????????????????????????????? | | ?????????????????????????????????????????????????? | | ?????????????????????????????????????????????????? | | ?????????????????????????????????????????????????? | | ????????????????????????? ??????????????????????? | | ????????????????#####???? "?????????????????????? | | ??????????????? #???? ???? ????????????????? | | ???????????????? #???? ??? t#???????????????? | | ???????????????? #???? ""? #???????????????? | | ????????????????# #???? """ ##??????????????? | | ???? ???????????# #???? """ ??????????????? | | ???? ???????????# #???# ???????????????? | | ???? ???????????# #???# ????????????????? | | ???? ???????????# #???# #?????????????? | | ???? ???????????# #???# #?????????????? | | ???# ??????????## ##??# "T" #?????????????? | | ???# #??##/#####! #### """ #?????????????? | | ???# #?## % u ##????????????? | | ???# #?## % ar % g ku ?????????????? | | ???# #?## % @ ##+??????????????????? | | ???# #??# %#### ###+####????????????????????? | | ???# #??# #?####+###? ???????????????????????? | | #### #??# #??? ?? ???????????????????????? | | #### #? """ # ""??????????????????????? | | ## """ # ""??????????????????????? | | % ## [ """ # S"?????????????????????? | | """ ## # ?????????????????????? | | "Y" """ ## "" """ ######?????????????????????? | | " " """ ## "T """ #??????????????????????????? | | """ ## "" ???????????????????????????????? | | ## ???????????????????????????????? | | #???##???????????????????????????????? | | % #????????????????????????????????????? | | #????????????????????????????????????? | | ############????????????????????????????????????? | | #???????????????????????????????????????????????? | | #???????????????????????????????????????????????? | | #???????????????????????????????????????????????? | | +???????????????????????????????????????????????? | | #???????????????????????????????????????????????? | | #???????????????????????????????????????????????? | | #???????????????????????????????????????????????? | | #???????????????????????????????????????????????? | | #???????????????????????????????????????????????? | +----------------------------------------------------+ Best States ------------- Heat Dissipation 45 Energy Generation 10 Energy Capacity 250 Matter Stores 300 Matter Capacity 300 Sight Range 16 Robot Scan Range 20 Terrain Scan Density 10 Evasion (%) 50 Targeting Accuracy 15 Recoil Reduction 2 Item Schematics ----------------- None Robot Schematics ------------------ None Fabricated ------------ Nothing Repaired ---------- Nothing Studied --------- None Alien Tech Used ----------------- None Achievements -------------- None Challenges ------------ None Game ------ Seed RestorationLegExpander Manual? 0 Play Time 00:12:49 Cumulative 32.7 hours Start 2026.04.08 @ 20:11:31 End 2026.04.08 @ 20:23:24 Sessions 1 Manual Loads 0 Difficulty Rogue Special Mode None Game No. 67 Rogue 67 Adventurer 0 Explorer 0 Win Type - Total 0 Types 0/0/0/0/0/0/0/0/0/0 Lore% 14 Gallery% 28 Achievement% 16 Wizard Run 0 Options --------- Layout 1 ASCII 0 Keyboard 0 Movement Mouse Keybinds 0 Fullscreen 2 Font 48/Smallcaps Map View 50x35 Zoom Use 0% Tactical HUD 1 Map Filters NONE Filters NONE Steam 1 RUN: 8c15824a-2576-4af9-85d7-79fe050e87b8